[Event "European Online Club-ch-H 2021"]
[Site "Online"]
[Date "2021.03.27"]
[Round "6.13"]
[White "Banusz, Tamas"]
[Black "Parvanyan, Ashot"]
[Result "1-0"]
[ECO "E65"]
[WhiteElo "2631"]
[BlackElo "2436"]
[Annotator "ChessBase"]
[PlyCount "151"]
[EventDate "2021.03.27"]
[EventType "team-tourn"]
[EventCountry "NET"]
[SourceTitle "playchess.com"]
[Source "ChessBase"]
[SourceQuality "1"]
[TimeControl "900+5"]

1. d4 {[%emt 0:00:00]} Nf6 {[%emt 0:00:11]} 2. c4 {[%emt 0:00:03]} g6 {[%emt 0:00:11]} 3. g3 {[%emt 0:00:04]} Bg7 {[%emt 0:00:01]} 4. Bg2 {[%emt 0:00:03]} O-O {[%emt 0:00:02]} 5. Nc3 {[%emt 0:00:02]} d6 {[%emt 0:00:01]} 6. Nf3 {[%emt 0:00:01]} c5 {[%emt 0:00:02]} 7. O-O {[%emt 0:00:03]} Nc6 {[%emt 0:00:01]} 8. dxc5 {[%emt 0:00:02]} dxc5 {[%emt 0:00:02]} 9. Be3 {[%emt 0:00:01]} Qa5 {[%emt 0:00:02]} 10. Qb3 {[%emt 0:00:07]} Qb4 {[%emt 0:00:32]} 11. Na4 {[%emt 0:00:04]} b6 {[%emt 0:05:50]} 12. Qxb4 {[%emt 0:00:13]} cxb4 {[%emt 0:02:48]} 13. Rac1 {[%emt 0:03:07]} Bd7 {[%emt 0:00:45]} 14. b3 {[%emt 0:00:30]} Rac8 {[%emt 0:00:50]} 15. Rfd1 {[%emt 0:01:26]} Bf5 {[%emt 0:00:43]} 16. Nd4 {[%emt 0:01:05]} Nxd4 {[%emt 0:00:26]} 17. Bxd4 {[%emt 0:00:00]} Rfd8 {[%emt 0:00:56]} 18. h3 {[%emt 0:00:51]} Rd7 {[%emt 0:02:40]} 19. Be3 {[%emt 0:00:09]} h5 {[%emt 0:00:24]} 20. Rd2 {[%emt 0:04:12]} Rxd2 {[%emt 0:00:03]} 21. Bxd2 {[%emt 0:00:02]} Bd7 {[%emt 0:00:09]} 22. Bxb4 {[%emt 0:00:27]} Bxa4 {[%emt 0:00:02]} 23. bxa4 {[%emt 0:00:00]} Rc7 {[%emt 0:00:05]} 24. a5 {[%emt 0:00:02]} Nd7 {[%emt 0:00:06]} 25. axb6 {[%emt 0:00:31]} Nxb6 {[%emt 0:00:04]} 26. c5 {[%emt 0:00:04]} Na4 {[%emt 0:00:07]} 27. c6 {[%emt 0:00:14]} Be5 {[%emt 0:00:03]} 28. Ba5 {[%emt 0:00:07]} Nb6 {[%emt 0:00:01]} 29. Rb1 {[%emt 0:00:07]} Bd4 {[%emt 0:00:02]} 30. e3 {[%emt 0:00:02]} Bc5 {[%emt 0:00:02]} 31. Rb5 {[%emt 0:00:02]} Bd6 {[%emt 0:00:07]} 32. Bb4 {[%emt 0:00:54]} Bxb4 {[%emt 0:00:09]} 33. Rxb4 {[%emt 0:00:02]} e6 {[%emt 0:00:06]} 34. Rb5 {[%emt 0:01:24]} Kf8 {[%emt 0:00:04]} 35. a4 {[%emt 0:01:02]} Ke7 {[%emt 0:00:03]} 36. a5 {[%emt 0:00:02]} Nd5 {[%emt 0:00:07]} 37. Bxd5 {[%emt 0:00:02]} exd5 {[%emt 0:00:02]} 38. Rxd5 {[%emt 0:00:05]} Rxc6 {[%emt 0:00:02]} 39. Kg2 {[%emt 0:00:09]} Rc2 {[%emt 0:00:05]} 40. Rb5 {[%emt 0:00:06]} Rc7 {[%emt 0:00:14]} 41. g4 {[%emt 0:00:04]} hxg4 {[%emt 0:00:02]} 42. hxg4 {[%emt 0:00:01]} Kd6 {[%emt 0:00:08]} 43. Kg3 {[%emt 0:00:16]} Kc6 {[%emt 0:00:03]} 44. Re5 {[%emt 0:00:06]} Rb7 {[%emt 0:00:06]} 45. Kf4 {[%emt 0:00:07]} Kd6 {[%emt 0:00:06]} 46. g5 {[%emt 0:00:03]} Rb4+ {[%emt 0:00:04]} 47. e4 {[%emt 0:00:01]} Rb2 {[%emt 0:00:04]} 48. f3 {[%emt 0:00:04]} Ra2 {[%emt 0:00:05]} 49. Rd5+ {[%emt 0:00:03]} Ke6 {[%emt 0:00:02]} 50. Rb5 {[%emt 0:00:01]} Ra3 {[%emt 0:00:06]} 51. Kg4 {[%emt 0:00:05]} Ra4 {[%emt 0:00:03]} 52. Rd5 {[%emt 0:00:14]} Ra1 {[%emt 0:00:11]} 53. f4 {[%emt 0:00:02]} Rg1+ {[%emt 0:00:02]} 54. Kf3 {[%emt 0:00:02]} Rf1+ {[%emt 0:00:02]} 55. Ke3 {[%emt 0:00:01]} Re1+ {[%emt 0:00:01]} 56. Kd4 {[%emt 0:00:02]} Rf1 {[%emt 0:00:13]} 57. f5+ {[%emt 0:00:08]} gxf5 {[%emt 0:00:02]} 58. Re5+ {[%emt 0:00:01]} Kd6 {[%emt 0:00:06]} 59. Rxf5 {[%emt 0:00:02]} Rd1+ {[%emt 0:00:05]} 60. Ke3 {[%emt 0:00:08]} Ke7 {[%emt 0:00:08]} 61. Rb5 {[%emt 0:00:06]} Re1+ {[%emt 0:00:04]} 62. Kf4 {[%emt 0:00:02]} Ke6 {[%emt 0:00:04]} 63. Rb7 {[%emt 0:00:04]} Rf1+ {[%emt 0:00:02]} 64. Ke3 {[%emt 0:00:02]} a6 {[%emt 0:00:11]} 65. Ra7 {[%emt 0:00:03]} Ke5 {[%emt 0:00:07]} 66. Rxa6 {[%emt 0:00:08]} Re1+ {[%emt 0:00:02]} 67. Kf2 {[%emt 0:00:03]} Rxe4 {[%emt 0:00:05]} 68. Ra8 {[%emt 0:00:01]} Kf5 {[%emt 0:00:06]} 69. a6 {[%emt 0:00:03]} Ra4 {[%emt 0:00:05]} 70. a7 {[%emt 0:00:02]} Ra3 {[%emt 0:00:04]} 71. g6 {[%emt 0:00:02]} Ra2+ {[%emt 0:00:09]} 72. Ke1 {[%emt 0:00:03]} Ra1+ {[%emt 0:00:04]} 73. Kd2 {[%emt 0:00:02]} Kf6 {[%emt 0:00:05]} 74. gxf7 {[%emt 0:00:04]} Ra2+ {[%emt 0:00:03]} 75. Kc1 {[%emt 0:00:02]} Kxf7 {[%emt 0:00:03]} 76. Rh8 {[%emt 0:00:02]} 1-0

[Event "European Online Club-ch-H 2021"]
[Site "Online"]
[Date "2021.03.27"]
[Round "6.14"]
[White "Olsen, Filip Boe"]
[Black "Braun, Arik"]
[Result "1-0"]
[ECO "E04"]
[WhiteElo "2379"]
[BlackElo "2609"]
[Annotator "ChessBase"]
[PlyCount "81"]
[EventDate "2021.03.27"]
[EventType "team-tourn"]
[EventCountry "NET"]
[SourceTitle "playchess.com"]
[Source "ChessBase"]
[SourceQuality "1"]
[TimeControl "900+5"]

1. d4 {[%emt 0:00:00]} Nf6 {[%emt 0:00:03]} 2. Nf3 {[%emt 0:00:07]} e6 {[%emt 0:00:03]} 3. c4 {[%emt 0:00:02]} d5 {[%emt 0:00:01]} 4. g3 {[%emt 0:00:01]} dxc4 {[%emt 0:00:02]} 5. Bg2 {[%emt 0:00:02]} c6 {[%emt 0:00:01]} 6. O-O {[%emt 0:00:08]} b5 {[%emt 0:00:08]} 7. a4 {[%emt 0:01:07]} Bb7 {[%emt 0:00:06]} 8. Ne5 {[%emt 0:01:50]} Qc8 {[%emt 0:00:04]} 9. b3 {[%emt 0:00:41]} cxb3 {[%emt 0:00:04]} 10. Qxb3 {[%emt 0:00:02]} b4 {[%emt 0:00:04]} 11. a5 {[%emt 0:01:22]} Nfd7 {[%emt 0:01:15]} 12. Nxd7 {[%emt 0:03:00]} Qxd7 {[%emt 0:00:58]} 13. Be3 {[%emt 0:01:26]} Be7 {[%emt 0:01:10]} 14. Nd2 {[%emt 0:00:04]} O-O {[%emt 0:00:35]} 15. Ne4 {[%emt 0:00:51]} Na6 {[%emt 0:01:42]} 16. Rfd1 {[%emt 0:00:46]} Rfd8 {[%emt 0:01:12]} 17. Nc5 {[%emt 0:00:37]} Bxc5 {[%emt 0:00:31]} 18. dxc5 {[%emt 0:00:02]} Qe7 {[%emt 0:00:03]} 19. h4 {[%emt 0:01:11]} h6 {[%emt 0:00:11]} 20. Qc4 {[%emt 0:02:24]} Rxd1+ {[%emt 0:00:46]} 21. Rxd1 {[%emt 0:00:01]} Rd8 {[%emt 0:00:03]} 22. Rc1 {[%emt 0:00:06]} e5 {[%emt 0:01:11]} 23. Be4 {[%emt 0:00:04]} Qe6 {[%emt 0:02:14]} 24. Qxe6 {[%emt 0:00:21]} fxe6 {[%emt 0:00:02]} 25. Rb1 {[%emt 0:00:04]} Kf7 {[%emt 0:00:18]} 26. Kg2 {[%emt 0:00:10]} Ke7 {[%emt 0:00:42]} 27. g4 {[%emt 0:00:05]} Kd7 {[%emt 0:01:06]} 28. g5 {[%emt 0:00:04]} hxg5 {[%emt 0:00:35]} 29. hxg5 {[%emt 0:00:05]} Rh8 {[%emt 0:00:27]} 30. Bd3 {[%emt 0:00:05]} Ke7 {[%emt 0:00:53]} 31. Kg3 {[%emt 0:00:07]} Rb8 {[%emt 0:00:22]} 32. g6 {[%emt 0:00:18]} Kf6 {[%emt 0:00:07]} 33. Kg4 {[%emt 0:00:06]} Ke7 {[%emt 0:00:19]} 34. Bc4 {[%emt 0:00:02]} Bc8 {[%emt 0:00:24]} 35. Rd1 {[%emt 0:00:23]} Ke8 {[%emt 0:00:08]} 36. Bg5 {[%emt 0:00:03]} Bb7 {[%emt 0:00:01]} 37. Bxe6 {[%emt 0:00:03]} Nxc5 {[%emt 0:00:02]} 38. Bf7+ {[%emt 0:00:03]} Kf8 {[%emt 0:00:02]} 39. Rh1 {[%emt 0:00:02]} Bc8+ {[%emt 0:00:04]} 40. Kf3 {[%emt 0:00:08]} e4+ {[%emt 0:00:02]} 41. Kg2 {[%emt 0:00:02]} 1-0

[Event "European Online Club-ch-H 2021"]
[Site "Online"]
[Date "2021.03.27"]
[Round "6.15"]
[White "Wagner, Dennis"]
[Black "Pajeken, Jakob Leon"]
[Result "1-0"]
[ECO "C99"]
[WhiteElo "2581"]
[BlackElo "2323"]
[Annotator "ChessBase"]
[PlyCount "97"]
[EventDate "2021.03.27"]
[EventType "team-tourn"]
[EventCountry "NET"]
[SourceTitle "playchess.com"]
[Source "ChessBase"]
[SourceQuality "1"]
[TimeControl "900+5"]

1. e4 {[%emt 0:00:00]} e5 {[%emt 0:00:03]} 2. Nf3 {[%emt 0:00:03]} Nc6 {[%emt 0:00:01]} 3. Bb5 {[%emt 0:00:01]} a6 {[%emt 0:00:01]} 4. Ba4 {[%emt 0:00:01]} Nf6 {[%emt 0:00:02]} 5. O-O {[%emt 0:00:04]} Be7 {[%emt 0:00:02]} 6. Re1 {[%emt 0:00:02]} b5 {[%emt 0:00:02]} 7. Bb3 {[%emt 0:00:01]} d6 {[%emt 0:00:01]} 8. c3 {[%emt 0:00:05]} O-O {[%emt 0:00:02]} 9. h3 {[%emt 0:00:00]} Na5 {[%emt 0:00:02]} 10. Bc2 {[%emt 0:00:03]} c5 {[%emt 0:00:02]} 11. d4 {[%emt 0:00:04]} Qc7 {[%emt 0:00:03]} 12. Nbd2 {[%emt 0:00:36]} cxd4 {[%emt 0:00:03]} 13. cxd4 {[%emt 0:00:01]} Rd8 {[%emt 0:00:01]} 14. d5 {[%emt 0:03:02]} Bd7 {[%emt 0:00:03]} 15. Nf1 {[%emt 0:00:12]} Rdc8 {[%emt 0:00:02]} 16. Bd3 {[%emt 0:00:22]} Nb7 {[%emt 0:00:03]} 17. Bg5 {[%emt 0:00:18]} Nc5 {[%emt 0:00:14]} 18. Rc1 {[%emt 0:00:08]} Qd8 {[%emt 0:00:39]} 19. Bb1 {[%emt 0:01:12]} Na4 {[%emt 0:00:36]} 20. Qd2 {[%emt 0:00:28]} Rxc1 {[%emt 0:02:15]} 21. Rxc1 {[%emt 0:00:03]} Rc8 {[%emt 0:00:02]} 22. b3 {[%emt 0:00:18]} Nc5 {[%emt 0:00:12]} 23. Ng3 {[%emt 0:00:11]} Qb6 {[%emt 0:02:35]} 24. b4 {[%emt 0:01:30]} Na4 {[%emt 0:00:25]} 25. Rxc8+ {[%emt 0:00:03]} Bxc8 {[%emt 0:00:01]} 26. Qc1 {[%emt 0:00:04]} Bd7 {[%emt 0:00:31]} 27. Bd3 {[%emt 0:01:10]} Qb7 {[%emt 0:00:35]} 28. Nh5 {[%emt 0:03:12]} Nxh5 {[%emt 0:00:50]} 29. Bxe7 {[%emt 0:00:05]} Nf4 {[%emt 0:00:05]} 30. Bf1 {[%emt 0:00:19]} Bxh3 {[%emt 0:00:30]} 31. Bxd6 {[%emt 0:00:45]} Bxg2 {[%emt 0:00:21]} 32. Nxe5 {[%emt 0:00:40]} Bxf1 {[%emt 0:02:17]} 33. Kxf1 {[%emt 0:00:54]} Ng6 {[%emt 0:00:32]} 34. Nxg6 {[%emt 0:00:10]} hxg6 {[%emt 0:00:03]} 35. Qc6 {[%emt 0:00:56]} Qxc6 {[%emt 0:00:05]} 36. dxc6 {[%emt 0:00:00]} Nb6 {[%emt 0:00:02]} 37. e5 {[%emt 0:00:20]} Nc8 {[%emt 0:00:21]} 38. Ke2 {[%emt 0:00:13]} f6 {[%emt 0:00:19]} 39. Ke3 {[%emt 0:00:17]} Kf7 {[%emt 0:00:05]} 40. Kd4 {[%emt 0:00:14]} Ke6 {[%emt 0:00:11]} 41. c7 {[%emt 0:00:06]} g5 {[%emt 0:00:22]} 42. exf6 {[%emt 0:00:11]} gxf6 {[%emt 0:00:29]} 43. Bh2 {[%emt 0:00:01]} f5 {[%emt 0:00:09]} 44. Kc5 {[%emt 0:00:02]} f4 {[%emt 0:00:05]} 45. Kc6 {[%emt 0:00:02]} Ne7+ {[%emt 0:02:29]} 46. Kb7 {[%emt 0:00:02]} Ke5 {[%emt 0:00:39]} 47. f3 {[%emt 0:00:03]} Kd5 {[%emt 0:00:12]} 48. Bg1 {[%emt 0:00:02]} Nf5 {[%emt 0:00:11]} 49. Bc5 {[%emt 0:00:03]} 1-0

[Event "European Online Club-ch-H 2021"]
[Site "Online"]
[Date "2021.03.27"]
[Round "6.16"]
[White "Arndt, Magnus"]
[Black "Buhmann, Rainer"]
[Result "1/2-1/2"]
[ECO "C45"]
[WhiteElo "2282"]
[BlackElo "2580"]
[Annotator "ChessBase"]
[PlyCount "143"]
[EventDate "2021.03.27"]
[EventType "team-tourn"]
[EventCountry "NET"]
[SourceTitle "playchess.com"]
[Source "ChessBase"]
[SourceQuality "1"]
[TimeControl "900+5"]

1. e4 {[%emt 0:00:00]} e5 {[%emt 0:00:02]} 2. Nf3 {[%emt 0:00:03]} Nc6 {[%emt 0:00:02]} 3. d4 {[%emt 0:00:08]} exd4 {[%emt 0:00:02]} 4. Nxd4 {[%emt 0:00:00]} Nf6 {[%emt 0:00:02]} 5. Nxc6 {[%emt 0:00:23]} bxc6 {[%emt 0:00:05]} 6. e5 {[%emt 0:00:02]} Qe7 {[%emt 0:00:03]} 7. Qe2 {[%emt 0:00:01]} Nd5 {[%emt 0:00:01]} 8. c4 {[%emt 0:00:02]} Nb6 {[%emt 0:00:03]} 9. Nc3 {[%emt 0:00:02]} Qe6 {[%emt 0:00:37]} 10. Qe4 {[%emt 0:00:25]} d5 {[%emt 0:00:08]} 11. exd6 {[%emt 0:00:22]} Qxe4+ {[%emt 0:00:03]} 12. Nxe4 {[%emt 0:00:00]} cxd6 {[%emt 0:00:01]} 13. Bf4 {[%emt 0:00:54]} d5 {[%emt 0:00:12]} 14. Nd6+ {[%emt 0:00:17]} Bxd6 {[%emt 0:00:46]} 15. Bxd6 {[%emt 0:00:00]} Nxc4 {[%emt 0:00:05]} 16. Bxc4 {[%emt 0:00:30]} dxc4 {[%emt 0:00:02]} 17. O-O-O {[%emt 0:00:41]} Be6 {[%emt 0:00:05]} 18. Rhe1 {[%emt 0:00:24]} O-O-O {[%emt 0:00:25]} 19. a3 {[%emt 0:00:18]} a6 {[%emt 0:03:23]} 20. Be5 {[%emt 0:00:33]} Rxd1+ {[%emt 0:00:06]} 21. Rxd1 {[%emt 0:00:00]} f6 {[%emt 0:00:08]} 22. Bc3 {[%emt 0:00:07]} Bd5 {[%emt 0:00:04]} 23. f3 {[%emt 0:00:23]} Kd7 {[%emt 0:00:33]} 24. Re1 {[%emt 0:00:11]} Rc8 {[%emt 0:00:22]} 25. Re3 {[%emt 0:00:32]} h5 {[%emt 0:00:19]} 26. h4 {[%emt 0:00:58]} Rg8 {[%emt 0:02:19]} 27. Re2 {[%emt 0:00:45]} c5 {[%emt 0:00:32]} 28. Kd2 {[%emt 0:00:08]} Be6 {[%emt 0:00:12]} 29. Ke3 {[%emt 0:00:08]} Bf5 {[%emt 0:00:14]} 30. Kf2 {[%emt 0:00:06]} Bd3 {[%emt 0:00:04]} 31. Re3 {[%emt 0:00:03]} Kd6 {[%emt 0:00:17]} 32. Re1 {[%emt 0:00:07]} Bf5 {[%emt 0:00:54]} 33. Re3 {[%emt 0:00:15]} Be6 {[%emt 0:00:10]} 34. Re1 {[%emt 0:00:05]} Ke7 {[%emt 0:00:10]} 35. Rd1 {[%emt 0:00:11]} Rc8 {[%emt 0:00:23]} 36. Rd2 {[%emt 0:00:30]} Bf5 {[%emt 0:00:08]} 37. Rd1 {[%emt 0:00:13]} Bd3 {[%emt 0:00:04]} 38. Re1+ {[%emt 0:00:04]} Kf7 {[%emt 0:00:02]} 39. Re3 {[%emt 0:00:05]} Rd8 {[%emt 0:00:16]} 40. Re1 {[%emt 0:00:27]} Bf5 {[%emt 0:00:34]} 41. Re2 {[%emt 0:00:22]} Rg8 {[%emt 0:00:20]} 42. Re1 {[%emt 0:00:19]} Bd3 {[%emt 0:00:27]} 43. Re3 {[%emt 0:00:06]} Rd8 {[%emt 0:00:22]} 44. Re1 {[%emt 0:00:05]} Rd5 {[%emt 0:00:03]} 45. Re3 {[%emt 0:00:09]} Rf5 {[%emt 0:00:18]} 46. Re1 {[%emt 0:00:11]} Rf4 {[%emt 0:00:22]} 47. Kg3 {[%emt 0:00:10]} Rf5 {[%emt 0:00:06]} 48. Kf2 {[%emt 0:00:03]} Rd5 {[%emt 0:00:06]} 49. Re3 {[%emt 0:00:04]} Bf5 {[%emt 0:00:03]} 50. Re2 {[%emt 0:00:11]} Rd7 {[%emt 0:00:50]} 51. Re1 {[%emt 0:00:18]} Be6 {[%emt 0:00:06]} 52. Re2 {[%emt 0:00:06]} Ke7 {[%emt 0:00:21]} 53. Rd2 {[%emt 0:00:11]} Rb7 {[%emt 0:00:10]} 54. Re2 {[%emt 0:00:05]} Kd6 {[%emt 0:00:04]} 55. Rd2+ {[%emt 0:00:05]} Kc6 {[%emt 0:00:29]} 56. Re2 {[%emt 0:00:06]} Bf7 {[%emt 0:00:32]} 57. Re3 {[%emt 0:00:07]} Rd7 {[%emt 0:00:06]} 58. Re2 {[%emt 0:00:04]} Bg6 {[%emt 0:00:27]} 59. Re3 {[%emt 0:00:08]} Bf7 {[%emt 0:00:15]} 60. Re2 {[%emt 0:00:04]} Bg6 {[%emt 0:00:02]} 61. Re3 {[%emt 0:00:02]} Kd6 {[%emt 0:00:07]} 62. Re2 {[%emt 0:00:05]} Rb7 {[%emt 0:00:04]} 63. Re3 {[%emt 0:00:06]} Kd7 {[%emt 0:00:07]} 64. Re1 {[%emt 0:00:05]} Bd3 {[%emt 0:00:02]} 65. Re3 {[%emt 0:00:02]} Rb8 {[%emt 0:00:03]} 66. Re1 {[%emt 0:00:04]} Rb3 {[%emt 0:00:14]} 67. Rc1 {[%emt 0:00:05]} Kc6 {[%emt 0:00:06]} 68. Re1 {[%emt 0:00:52]} Kd7 {[%emt 0:00:06]} 69. Rc1 {[%emt 0:00:07]} Rb8 {[%emt 0:00:02]} 70. Re1 {[%emt 0:00:03]} Rg8 {[%emt 0:00:05]} 71. Re3 {[%emt 0:00:05]} Rb8 {[%emt 0:00:06]} 72. Re1 {[%emt 0:00:02]} 1/2-1/2

[Event "European Online Club-ch-H 2021"]
[Site "Online"]
[Date "2021.03.27"]
[Round "6.17"]
[White "Mamedov, Rauf"]
[Black "Nagy, Gabor"]
[Result "1/2-1/2"]
[ECO "B22"]
[WhiteElo "2654"]
[BlackElo "2509"]
[Annotator "ChessBase"]
[PlyCount "60"]
[EventDate "2021.03.27"]
[EventType "team-tourn"]
[EventCountry "NET"]
[SourceTitle "playchess.com"]
[Source "ChessBase"]
[SourceQuality "1"]
[TimeControl "900+5"]

1. e4 {[%emt 0:00:00]} c5 {[%emt 0:00:05]} 2. Nf3 {[%emt 0:00:04]} e6 {[%emt 0:00:01]} 3. c3 {[%emt 0:00:05]} d5 {[%emt 0:00:07]} 4. exd5 {[%emt 0:00:07]} Qxd5 {[%emt 0:00:02]} 5. d4 {[%emt 0:00:01]} Nf6 {[%emt 0:00:03]} 6. Na3 {[%emt 0:00:07]} Nc6 {[%emt 0:01:01]} 7. Nb5 {[%emt 0:00:42]} Qd8 {[%emt 0:00:18]} 8. dxc5 {[%emt 0:00:03]} Bxc5 {[%emt 0:00:17]} 9. Qxd8+ {[%emt 0:00:03]} Kxd8 {[%emt 0:00:03]} 10. b4 {[%emt 0:00:03]} Bb6 {[%emt 0:00:28]} 11. Nd6 {[%emt 0:00:03]} Ke7 {[%emt 0:00:07]} 12. Nc4 {[%emt 0:00:02]} Ne4 {[%emt 0:00:11]} 13. Nxb6 {[%emt 0:04:04]} axb6 {[%emt 0:00:03]} 14. Bb2 {[%emt 0:00:24]} f6 {[%emt 0:01:03]} 15. Bd3 {[%emt 0:00:05]} Nd6 {[%emt 0:00:05]} 16. b5 {[%emt 0:01:00]} Na5 {[%emt 0:00:15]} 17. Ba3 {[%emt 0:00:14]} Rd8 {[%emt 0:02:20]} 18. O-O-O {[%emt 0:02:13]} e5 {[%emt 0:03:09]} 19. Bb4 {[%emt 0:02:15]} Be6 {[%emt 0:00:16]} 20. Bxh7 {[%emt 0:00:20]} Nac4 {[%emt 0:00:14]} 21. Nd2 {[%emt 0:01:36]} Kf7 {[%emt 0:02:40]} 22. Nxc4 {[%emt 0:00:03]} Nxc4 {[%emt 0:00:02]} 23. Bb1 {[%emt 0:00:06]} Rdc8 {[%emt 0:00:32]} 24. f4 {[%emt 0:00:45]} exf4 {[%emt 0:00:10]} 25. Rhe1 {[%emt 0:00:02]} Ne3 {[%emt 0:00:07]} 26. Rd4 {[%emt 0:00:15]} Bxa2 {[%emt 0:00:56]} 27. g3 {[%emt 0:02:08]} Bxb1 {[%emt 0:00:28]} 28. Kxb1 {[%emt 0:00:02]} Rd8 {[%emt 0:00:56]} 29. Rxf4 {[%emt 0:00:10]} Nd5 {[%emt 0:00:04]} 30. Rc4 {[%emt 0:00:03]} Rd7 {[%emt 0:00:07]} 1/2-1/2

[Event "European Online Club-ch-H 2021"]
[Site "Online"]
[Date "2021.03.27"]
[Round "6.18"]
[White "Mihok, Oliver"]
[Black "Asadli, Vugar"]
[Result "1/2-1/2"]
[ECO "B18"]
[WhiteElo "2540"]
[BlackElo "2572"]
[Annotator "ChessBase"]
[PlyCount "118"]
[EventDate "2021.03.27"]
[EventType "team-tourn"]
[EventCountry "NET"]
[SourceTitle "playchess.com"]
[Source "ChessBase"]
[SourceQuality "1"]
[TimeControl "900+5"]

1. e4 {[%emt 0:00:00]} c6 {[%emt 0:00:03]} 2. d4 {[%emt 0:00:06]} d5 {[%emt 0:00:01]} 3. Nd2 {[%emt 0:00:02]} dxe4 {[%emt 0:00:01]} 4. Nxe4 {[%emt 0:00:01]} Bf5 {[%emt 0:00:01]} 5. Ng3 {[%emt 0:00:01]} Bg6 {[%emt 0:00:02]} 6. Bc4 {[%emt 0:00:01]} e6 {[%emt 0:00:11]} 7. N1e2 {[%emt 0:00:02]} Nf6 {[%emt 0:00:09]} 8. O-O {[%emt 0:00:03]} Nbd7 {[%emt 0:00:04]} 9. f4 {[%emt 0:00:02]} Nb6 {[%emt 0:00:04]} 10. Bd3 {[%emt 0:00:02]} Bxd3 {[%emt 0:00:04]} 11. Qxd3 {[%emt 0:00:01]} g6 {[%emt 0:00:07]} 12. f5 {[%emt 0:00:01]} gxf5 {[%emt 0:00:42]} 13. Nxf5 {[%emt 0:00:02]} exf5 {[%emt 0:00:58]} 14. Qxf5 {[%emt 0:00:02]} Be7 {[%emt 0:01:37]} 15. Bg5 {[%emt 0:00:12]} Nbd5 {[%emt 0:00:16]} 16. Rae1 {[%emt 0:04:20]} Qd7 {[%emt 0:02:12]} 17. Ng3 {[%emt 0:00:03]} O-O-O {[%emt 0:02:27]} 18. c4 {[%emt 0:00:14]} Qxf5 {[%emt 0:02:20]} 19. Nxf5 {[%emt 0:01:04]} Bb4 {[%emt 0:00:02]} 20. cxd5 {[%emt 0:00:37]} Nxd5 {[%emt 0:00:28]} 21. Bxd8 {[%emt 0:00:47]} Bxe1 {[%emt 0:00:02]} 22. Nd6+ {[%emt 0:00:37]} Kd7 {[%emt 0:00:01]} 23. Nxf7 {[%emt 0:00:20]} Re8 {[%emt 0:00:24]} 24. Ne5+ {[%emt 0:02:03]} Kxd8 {[%emt 0:00:02]} 25. Rxe1 {[%emt 0:00:02]} Kc7 {[%emt 0:00:11]} 26. Rf1 {[%emt 0:00:28]} c5 {[%emt 0:01:28]} 27. Rf7+ {[%emt 0:00:04]} Kd6 {[%emt 0:00:01]} 28. Rd7+ {[%emt 0:01:43]} Ke6 {[%emt 0:00:02]} 29. Rxh7 {[%emt 0:00:29]} cxd4 {[%emt 0:00:07]} 30. Nf3 {[%emt 0:00:04]} d3 {[%emt 0:00:01]} 31. Rxb7 {[%emt 0:00:21]} Rc8 {[%emt 0:00:04]} 32. Rxa7 {[%emt 0:00:25]} Rc1+ {[%emt 0:00:15]} 33. Kf2 {[%emt 0:00:03]} Rc2+ {[%emt 0:00:02]} 34. Kg3 {[%emt 0:00:13]} d2 {[%emt 0:00:11]} 35. Nxd2 {[%emt 0:00:13]} Rxd2 {[%emt 0:00:01]} 36. Rb7 {[%emt 0:00:20]} Ne3 {[%emt 0:00:08]} 37. a4 {[%emt 0:00:16]} Nf5+ {[%emt 0:00:22]} 38. Kh3 {[%emt 0:00:26]} Nd6 {[%emt 0:00:04]} 39. Rb6 {[%emt 0:00:14]} Kd7 {[%emt 0:00:14]} 40. b3 {[%emt 0:00:23]} Kc7 {[%emt 0:00:07]} 41. Rb4 {[%emt 0:00:17]} Kc6 {[%emt 0:00:01]} 42. g4 {[%emt 0:00:17]} Kc5 {[%emt 0:00:01]} 43. Rb8 {[%emt 0:00:06]} Ne4 {[%emt 0:00:02]} 44. Rb5+ {[%emt 0:00:13]} Kd4 {[%emt 0:00:04]} 45. g5 {[%emt 0:00:10]} Ke3 {[%emt 0:00:12]} 46. Kg4 {[%emt 0:00:32]} Rg2+ {[%emt 0:00:09]} 47. Kh5 {[%emt 0:00:12]} Rxh2+ {[%emt 0:00:06]} 48. Kg6 {[%emt 0:00:02]} Kf4 {[%emt 0:00:15]} 49. a5 {[%emt 0:00:11]} Rc2 {[%emt 0:00:04]} 50. Rb6 {[%emt 0:00:19]} Rc5 {[%emt 0:00:19]} 51. a6 {[%emt 0:00:10]} Rxg5+ {[%emt 0:00:03]} 52. Kf7 {[%emt 0:00:02]} Ra5 {[%emt 0:00:02]} 53. b4 {[%emt 0:00:04]} Ra4 {[%emt 0:00:03]} 54. b5 {[%emt 0:00:09]} Ke5 {[%emt 0:00:06]} 55. Ke7 {[%emt 0:00:05]} Kd5 {[%emt 0:00:11]} 56. Kd7 {[%emt 0:00:12]} Nc5+ {[%emt 0:00:04]} 57. Kc7 {[%emt 0:00:04]} Kc4 {[%emt 0:00:10]} 58. Rb8 {[%emt 0:00:06]} Nxa6+ {[%emt 0:00:10]} 59. bxa6 {[%emt 0:00:03]} Rxa6 {[%emt 0:00:02]} 1/2-1/2